fUST/lending_fUST_20240102
["ID","MTS","AMOUNT","RATE_DAILY","PERIOD"]
[309811573,1704161254285,-500.0,0.00041095,7]
[309811574,1704161254304,-500.0,0.00041095,7]
[309811575,1704161254324,-600.26657302,0.00041095,2]
[309811576,1704161254344,-500.0,0.00041095,7]
[309811577,1704161254364,-500.0,0.00041095,7]
[309811578,1704161254383,-500.0,0.00041095,7]
[309811579,1704161254403,-517.29779249,0.00041095,7]
[309811580,1704161254422,-500.0,0.00041095,7]
[309811581,1704161254443,-500.0,0.00041095,7]
[309811582,1704161254463,-500.0,0.00041095,7]
[309811583,1704161254482,-205.23438726,0.00041095,7]
[309811584,1704161254503,-500.0,0.00041095,7]
[309811585,1704161254523,-1063.06,0.00041095,7]
[309811586,1704161254543,-500.0,0.00041095,7]
[309811587,1704161254564,-500.0,0.00041095,7]
[309811588,1704161254584,-500.0,0.00041095,7]
[309811589,1704161254607,-500.0,0.00041095,7]
[309811590,1704161254629,-500.0,0.00041095,7]
[309811591,1704161254651,-500.0,0.00041095,7]
[309811592,1704161254671,-500.0,0.00041095,7]
[309811593,1704161254764,-500.0,0.00041095,7]
[309811594,1704161254784,-1983.07,0.00041095,7]
[309811595,1704161254804,-1983.07,0.00041095,7]
[309811596,1704161254824,-1983.07,0.00041095,7]
[309811597,1704161254844,-1983.07,0.00041095,7]
[309811598,1704161254863,-1983.07,0.00041095,7]
[309811599,1704161254884,-1983.07,0.00041095,7]
[309811600,1704161254904,-1983.07,0.00041095,7]
[309811601,1704161254925,-1983.07,0.00041095,7]
[309811602,1704161254947,-1983.07,0.00041095,7]
[309811603,1704161254967,-1983.07,0.00041095,7]
[309811604,1704161254988,-1983.07,0.00041095,7]
[309811605,1704161255008,-500.0,0.00041095,7]
[309811606,1704161255030,-1983.07,0.00041095,7]
[309811607,1704161255051,-500.0,0.00041095,7]
[309811608,1704161255072,-1983.07,0.00041095,7]
[309811609,1704161255096,-10380.39,0.00041095,7]
[309811610,1704161255117,-1983.07,0.00041095,7]
[309811611,1704161255138,-1983.07,0.00041095,7]
[309811612,1704161255160,-1983.07,0.00041095,7]
[309811613,1704161255180,-1983.07,0.00041095,7]
[309811614,1704161255202,-1983.07,0.00041095,7]
[309811615,1704161255223,-1983.07,0.00041095,7]
[309811616,1704161255249,-1983.07,0.00041095,7]
[309811617,1704161255269,-1983.07,0.00041095,7]
[309811618,1704161255289,-474.03593722,0.00041095,7]
[309811619,1704161255310,-1983.07,0.00041095,7]
[309811620,1704161255331,-1983.07,0.00041095,7]
[309811621,1704161255351,-1983.25575002,0.00041095,7]
[309811622,1704161255373,-500.0,0.00041095,7]
[309811623,1704161255393,-528.5801254,0.00041095,7]
[309811624,1704161255413,-500.0,0.00041095,7]
[309811625,1704161255436,-3231.49828301,0.00041095,7]
[309811676,1704161432303,-3000.85095283,0.00024872,2]
[309811677,1704161432312,-385.09268139,0.00036,2]
[309811678,1704161432322,-1000.0,0.00041075,7]
[309811679,1704161432331,-674.39508191,0.00041076,2]
[309811680,1704161432341,-1579.68419372,0.00041077,4]
[309811681,1704161432350,-326.40546019,0.00041078,4]
[309811682,1704161432359,-200.37048132,0.00041079,4]
[309811684,1704161432368,-4590.24957646,0.00041079,4]
[309811687,1704161432378,-154.82968734,0.00041079,4]
[309811690,1704161432387,-3118.88642131,0.00041079,4]
[309811693,1704161432396,-304.83848844,0.0004108,4]
[309811696,1704161432405,-823.36,0.00041084,3]
[309811699,1704161432414,-4355.49112622,0.00041093,4]
[309811702,1704161432423,-648.56068062,0.00041093,4]
[309811705,1704161432432,-189.40024607,0.00041093,4]
[309811708,1704161432441,-17816.52878652,0.00041093,4]
[309811711,1704161432451,-2643.6292175,0.00041093,4]
[309811713,1704161432460,-180.87227018,0.00041093,4]
[309811715,1704161432469,-231.37306165,0.00041093,4]
[309811717,1704161432478,-380.83497858,0.00041093,4]
[309811718,1704161432489,-1193.13954052,0.00041093,6]
[309811719,1704161432499,-440.46656028,0.00041093,4]
[309811720,1704161432511,-291.27547366,0.00041093,4]
[309811721,1704161432521,-285.90460365,0.00041093,2]
[309811722,1704161432530,-239.40372608,0.00041093,4]
[309811723,1704161432539,-231.65615899,0.00041093,2]
[309811724,1704161432548,-845.07250849,0.00041094,4]
[309811725,1704161432558,-263.01063293,0.00041094,4]
[309811726,1704161432566,-491.13521653,0.00041094,4]
[309811727,1704161432575,-187.05003749,0.00041094,4]
[309811728,1704161432585,-500.0,0.00041094,4]
[309811729,1704161432594,-290.28143136,0.00041094,4]
[309811730,1704161432603,-13522.63456777,0.00041094,4]
[309811731,1704161432618,-401.32961597,0.00041094,4]
[309811732,1704161432629,-92041.08429,0.00041094,4]
[309811757,1704161438466,-21528.43818626,0.00041094,4]
[309811759,1704161438475,-502.75326566,0.00041095,7]
[309811761,1704161438485,-500.0,0.00041095,7]
[309811763,1704161438493,-503.72303204,0.00041095,7]
[309811765,1704161438503,-502.26758404,0.00041095,7]
[309811767,1704161438512,-502.73990605,0.00041095,7]
[309811769,1704161438521,-244.97619189,0.00041095,7]
[309811771,1704161438529,-500.71116039,0.00041095,7]
[309811773,1704161438539,-508.23811546,0.00041095,7]
[309811775,1704161438548,-3652.92,0.00041095,7]
[309811776,1704161438557,-929.38,0.00041095,7]
[309811778,1704161438566,-500.0,0.00041095,7]
[309811780,1704161438575,-500.0,0.00041095,7]
[309811782,1704161438584,-500.0,0.00041095,7]
[309811784,1704161438593,-512.83483493,0.00041095,7]
[309811786,1704161438603,-501.0477852,0.00041095,7]
[309811788,1704161438612,-500.0,0.00041095,7]
[309811790,1704161438622,-690.43,0.00041095,7]
[309811792,1704161438631,-504.07996436,0.00041095,7]
[309811794,1704161438641,-500.0,0.00041095,7]
[309811796,1704161438650,-541.38269851,0.00041095,7]
[309811798,1704161438661,-500.0,0.00041095,7]
[309811800,1704161438675,-500.0,0.00041095,7]
[309811802,1704161438685,-500.0,0.00041095,7]
[309811804,1704161438694,-500.0,0.00041095,7]
[309811806,1704161438704,-366.8039519,0.00041095,7]
[309811808,1704161438715,-500.0,0.00041095,7]
[309811810,1704161438724,-506.63169543,0.00041095,7]
[309811812,1704161438733,-505.81975695,0.00041095,7]
[309811814,1704161438742,-500.0,0.00041095,7]
[309811816,1704161438752,-492.92903799,0.00041095,7]
[309811818,1704161438763,-500.0,0.00041095,7]
[309811820,1704161438772,-506.8031834,0.00041095,7]
[309811822,1704161438781,-500.0,0.00041095,7]
[309811824,1704161438790,-510.18678161,0.00041095,7]
[309811826,1704161438800,-506.47897817,0.00041095,7]
[309811828,1704161438808,-500.0,0.00041095,7]
[309811830,1704161438818,-500.0,0.00041095,7]
[309811831,1704161438826,-500.0,0.00041095,7]
[309811833,1704161438836,-507.9660242,0.00041095,7]
[309811835,1704161438845,-500.0,0.00041095,7]
[309811837,1704161438854,-510.68023767,0.00041095,7]
[309811839,1704161438864,-500.0,0.00041095,7]
[309811841,1704161438873,-500.0,0.00041095,7]
[309811843,1704161438882,-500.0,0.00041095,7]
[309811845,1704161438892,-500.0,0.00041095,7]
[309811847,1704161438901,-524.30327002,0.00041095,7]
[309811849,1704161438911,-500.0,0.00041095,7]
[309811851,1704161438919,-500.0,0.00041095,7]
[309811853,1704161438928,-501.15202133,0.00041095,7]
[309811854,1704161438938,-500.0,0.00041095,7]
[309811856,1704161438947,-500.0,0.00041095,7]
[309811858,1704161438956,-506.05016547,0.00041095,7]
[309811860,1704161438966,-508.8573973,0.00041095,7]
[309811862,1704161438976,-500.0,0.00041095,7]
[309811864,1704161438985,-500.0,0.00041095,7]
[309811866,1704161438994,-505.55866074,0.00041095,7]
[309811868,1704161439004,-500.0,0.00041095,7]
[309811870,1704161439013,-500.0,0.00041095,7]
[309811872,1704161439023,-500.0,0.00041095,7]
[309811874,1704161439032,-504.38619575,0.00041095,7]
[309811876,1704161439041,-500.0,0.00041095,7]
[309811878,1704161439051,-500.0,0.00041095,7]
[309811880,1704161439061,-500.0,0.00041095,7]
[309811882,1704161439070,-500.0,0.00041095,7]
[309811883,1704161439079,-507.19171147,0.00041095,7]
[309811885,1704161439089,-500.0,0.00041095,7]
[309811887,1704161439099,-500.0,0.00041095,7]
[309811889,1704161439109,-467.79304641,0.00041095,7]
[309811891,1704161439118,-731.17,0.00041095,7]
[309811893,1704161439128,-52383.1,0.00041095,3]
[309811895,1704161439138,-500.0,0.00041095,7]
[309811897,1704161439147,-503.71771778,0.00041095,7]
[309811899,1704161439156,-517.55320889,0.00041095,7]
[309811901,1704161439167,-500.0,0.00041095,7]
[309811903,1704161439176,-500.0,0.00041095,7]
[309811905,1704161439185,-500.0,0.00041095,7]
[309811907,1704161439197,-508.17156175,0.00041095,7]
[309811909,1704161439206,-150.0,0.00041095,7]
[309811911,1704161439216,-500.0,0.00041095,7]
[309811912,1704161439227,-500.0,0.00041095,7]
[309811913,1704161439238,-500.0,0.00041095,7]
[309811914,1704161439248,-500.0,0.00041095,7]
[309811915,1704161439258,-500.0,0.00041095,7]
[309811916,1704161439268,-500.0,0.00041095,7]
[309811917,1704161439278,-500.0,0.00041095,7]
[309811918,1704161439288,-500.0,0.00041095,7]
[309811919,1704161439298,-500.0,0.00041095,7]
[309811920,1704161439308,-573.44590777,0.00041095,7]
[309811921,1704161439318,-500.0,0.00041095,7]
[309811922,1704161439327,-500.0,0.00041095,7]
[309811923,1704161439337,-368.80845223,0.00041095,7]
[309811924,1704161439346,-500.0,0.00041095,7]
[309811925,1704161439355,-500.0,0.00041095,7]
[309811927,1704161439364,-500.0,0.00041095,7]
[309811929,1704161439373,-703.47,0.00041095,7]
[309811931,1704161439383,-9947.87,0.00041095,7]
[309811933,1704161439392,-500.0,0.00041095,7]
[309811935,1704161439402,-4001.31,0.00041095,7]
[309811937,1704161439411,-500.0,0.00041095,7]
[309811939,1704161439421,-500.0,0.00041095,7]
[309811941,1704161439431,-456.99652081,0.00041095,7]
[309811949,1704161439501,-503.95710297,0.00041095,7]
[309811951,1704161439511,-4004.8,0.00041095,7]
[309811953,1704161439521,-500.0,0.00041095,7]
[309811956,1704161439531,-584.98026133,0.00041095,7]
[309811957,1704161439541,-500.0,0.00041095,7]
[309811959,1704161439550,-506.58870734,0.00041095,7]
[309811961,1704161439559,-500.0,0.00041095,7]
[309811963,1704161439568,-4731.56,0.00041095,7]
[309811965,1704161439577,-500.0,0.00041095,7]
[309811967,1704161439586,-500.0,0.00041095,7]
[309811969,1704161439596,-500.0,0.00041095,7]
[309811971,1704161439605,-7782.15526924,0.00041095,14]
[309811973,1704161439614,-500.0,0.00041095,7]
[309811976,1704161439625,-500.0,0.00041095,7]
[309811978,1704161439634,-500.0,0.00041095,7]
[309811980,1704161439644,-408.04625137,0.00041095,7]
[309811982,1704161439653,-500.0,0.00041095,7]
[309811984,1704161439663,-508.2479361,0.00041095,7]
[309811985,1704161439672,-500.0,0.00041095,7]
[309811988,1704161439682,-500.0,0.00041095,7]
[309811990,1704161439691,-500.87962204,0.00041095,7]
[309811991,1704161439701,-500.0,0.00041095,7]
[309811993,1704161439710,-503.38421197,0.00041095,7]
[309811995,1704161439719,-500.0,0.00041095,7]
[309811997,1704161439727,-500.0,0.00041095,7]
[309812000,1704161439736,-504.58107349,0.00041095,7]
[309812002,1704161439746,-1028.73,0.00041095,7]
[309812004,1704161439754,-500.0,0.00041095,7]
[309812006,1704161439764,-500.0,0.00041095,7]
[309812008,1704161439772,-500.0,0.00041095,7]
[309812009,1704161439782,-500.0,0.00041095,7]
[309812010,1704161439790,-500.0,0.00041095,7]
[309812012,1704161439799,-715.54,0.00041095,7]
[309812014,1704161439809,-2475.03,0.00041095,7]
[309812016,1704161439818,-304.64690222,0.00041095,7]
[309812018,1704161439828,-500.0,0.00041095,7]
[309812020,1704161439837,-500.0,0.00041095,7]
[309812022,1704161439846,-500.0,0.00041095,7]
[309812024,1704161439855,-500.0,0.00041095,7]
[309812026,1704161439864,-500.0,0.00041095,7]
[309812028,1704161439875,-727.24,0.00041095,7]
[309812029,1704161439884,-355.27017159,0.00041095,7]
[309812031,1704161439894,-1262.83439,0.00041095,2]
[309812033,1704161439904,-1262.83439,0.00041095,2]
[309812035,1704161439914,-1262.83439,0.00041095,2]
[309812037,1704161439924,-1262.83439,0.00041095,2]
[309812039,1704161439933,-210.637501,0.00041095,2]
[309812041,1704161439943,-210.637501,0.00041095,2]
[309812043,1704161439953,-210.637501,0.00041095,2]
[309812045,1704161439963,-210.637501,0.00041095,2]
[309812047,1704161439972,-33730.6328836,0.00041096,15]
[309812048,1704161439981,-4538.14064843,0.00041096,15]
[309812050,1704161439992,-1268.29395236,0.00041098,2]
[309812052,1704161440001,-1268.29395236,0.00041132,2]
[309812054,1704161440011,-200.52,0.000412,4]
[309812056,1704161440021,-803.0,0.00041202,60]
[309812058,1704161440031,-803.0,0.00041212,60]
[309812060,1704161440040,-803.0,0.00041222,60]
[309812062,1704161440049,-294.68112992,0.00041231,7]
[309812064,1704161440059,-592.71107352,0.00041231,7]
[309812066,1704161440069,-500.0,0.00041232,7]
[309812068,1704161440078,-500.0,0.00041232,7]
[309812070,1704161440088,-510.82192723,0.00041232,7]
[309812072,1704161440097,-500.0,0.00041232,2]
[309812074,1704161440107,-515.85994366,0.00041232,7]
[309812076,1704161440117,-620.87649819,0.00041232,7]
[309812078,1704161440129,-504.04745941,0.00041232,7]
[309812080,1704161440139,-2371.14,0.00041232,7]
[309812082,1704161440148,-500.0,0.00041232,7]
[309812083,1704161440156,-500.0,0.00041232,7]
[309812085,1704161440166,-519.2390185,0.00041232,7]
[309812087,1704161440175,-506.94734692,0.00041232,7]
[309812089,1704161440185,-500.0,0.00041232,7]
[309812091,1704161440194,-505.17781555,0.00041232,7]
[309812093,1704161440203,-500.0,0.00041232,7]
[309812095,1704161440213,-500.0,0.00041232,7]
[309812097,1704161440222,-519.45813524,0.00041232,7]
[309812099,1704161440232,-265.51121293,0.00041232,7]
[309812101,1704161440241,-502.94656177,0.00041232,7]
[309812103,1704161440250,-500.0,0.00041232,7]
[309812105,1704161440259,-500.0,0.00041232,7]
[309812107,1704161440267,-500.0,0.00041232,7]
[309812109,1704161440276,-500.0,0.00041232,7]
[309812111,1704161440285,-500.0,0.00041232,7]
[309812113,1704161440294,-500.0,0.00041232,7]
[309812115,1704161440303,-503.76871091,0.00041232,7]
[309812116,1704161440313,-500.0,0.00041232,7]
[309812118,1704161440322,-508.44288091,0.00041232,7]
[309812120,1704161440331,-505.83205928,0.00041232,7]
[309812122,1704161440340,-172.41593127,0.00041232,7]
[309812124,1704161440349,-2141.32,0.00041232,7]
[309812126,1704161440358,-200.16352487,0.00041232,2]
[309812128,1704161440367,-500.0,0.00041232,7]
[309812130,1704161440378,-511.13209528,0.00041232,7]
[309812132,1704161440387,-500.0,0.00041232,7]
[309812133,1704161440397,-500.0,0.00041232,7]
[309812136,1704161440407,-500.0,0.00041232,7]
[309812138,1704161440417,-1194.12,0.00041232,7]
[309812140,1704161440426,-500.0,0.00041232,7]
[309812141,1704161440435,-311.609951,0.00041232,7]
[309812142,1704161440444,-583.9633887,0.00041232,7]
[309812143,1704161440453,-513.19198858,0.00041232,7]
[309812144,1704161440462,-503.46402141,0.00041232,7]
[309812145,1704161440472,-500.0,0.00041232,7]
[309812148,1704161440481,-500.0,0.00041232,7]
[309812149,1704161440491,-578.5486869,0.00041232,7]
[309812150,1704161440500,-500.0,0.00041232,7]
[309812151,1704161440509,-508.90637175,0.00041232,7]
[309812152,1704161440518,-502.38654514,0.00041232,7]
[309812153,1704161440527,-500.0,0.00041232,7]
[309812154,1704161440536,-509.51862074,0.00041232,7]
[309812155,1704161440545,-500.0,0.00041232,7]
[309812156,1704161440554,-507.10807147,0.00041232,7]
[309812157,1704161440563,-518.03156489,0.00041232,7]
[309812158,1704161440573,-513.43077945,0.00041232,7]
[309812159,1704161440582,-500.0,0.00041232,7]
[309812160,1704161440591,-500.0,0.00041232,7]
[309812161,1704161440600,-505.24422187,0.00041232,7]
[309812162,1704161440609,-353.40449712,0.00041232,7]
[309812163,1704161440618,-500.0,0.00041232,7]
[309812164,1704161440630,-510.1881942,0.00041232,7]
[309812165,1704161440639,-500.0,0.00041232,7]
[309812166,1704161440659,-500.0,0.00041232,7]
[309812167,1704161440669,-508.12761668,0.00041232,7]
[309812168,1704161440678,-500.0,0.00041232,7]
[309812169,1704161440690,-507.09872832,0.00041232,7]
[309812170,1704161440699,-514.71288415,0.00041232,7]
[309812171,1704161440709,-500.0,0.00041232,7]
[309812172,1704161440718,-500.0,0.00041232,7]
[309812173,1704161440728,-500.0,0.00041232,7]
[309812174,1704161440737,-500.0,0.00041232,7]
[309812175,1704161440747,-505.81306495,0.00041232,7]
[309812176,1704161440757,-600.59129394,0.00041232,7]
[309812177,1704161440768,-500.0,0.00041232,7]
[309812179,1704161440778,-601.16,0.00041232,7]
[309812180,1704161440787,-500.0,0.00041232,7]
[309812181,1704161440796,-626.64642937,0.00041232,7]
[309812182,1704161440806,-500.0,0.00041232,7]
[309812183,1704161440817,-284.58019569,0.00041232,7]
[309812184,1704161440827,-500.0,0.00041232,7]
[309812185,1704161440836,-501.09918529,0.00041232,7]
[309812186,1704161440846,-1063.06,0.00041232,7]
[309812187,1704161440856,-524.97920464,0.00041232,7]
[309812188,1704161440865,-500.0,0.00041232,7]
[309812189,1704161440876,-500.0,0.00041232,7]
[309812190,1704161440943,-527.40738664,0.00041232,7]
[309812191,1704161440952,-500.0,0.00041232,7]
[309812192,1704161440962,-500.0,0.00041232,7]
[309812193,1704161440972,-598.12549123,0.00041232,7]
[309812194,1704161440981,-500.0,0.00041232,7]
[309812195,1704161440991,-3652.92,0.00041232,7]
[309812196,1704161441000,-929.38,0.00041232,7]
[309812197,1704161441010,-500.0,0.00041232,7]
[309812198,1704161441019,-501.29674734,0.00041232,7]
[309812199,1704161441028,-501.8983955,0.00041232,7]
[309812200,1704161441037,-505.38129326,0.00041232,7]
[309812201,1704161441047,-690.43,0.00041232,7]
[309812202,1704161441056,-513.91252564,0.00041232,7]
[309812203,1704161441066,-502.4742012,0.00041232,7]
[309812204,1704161441075,-502.45580185,0.00041232,7]
[309812205,1704161441085,-512.68359434,0.00041232,7]
[309812206,1704161441094,-500.0,0.00041232,7]
[309812207,1704161441104,-378.35919804,0.00041232,7]
[309812208,1704161441113,-500.0,0.00041232,7]
[309812209,1704161441123,-205.39912874,0.00041232,7]
[309812210,1704161441132,-500.0,0.00041232,7]
[309812211,1704161441142,-526.02998083,0.00041232,7]
[309812212,1704161441150,-500.0,0.00041232,7]
[309812213,1704161441160,-508.6842317,0.00041232,7]
[309812214,1704161441169,-500.0,0.00041232,7]
[309812215,1704161441179,-500.0,0.00041232,7]
[309812216,1704161441188,-500.0,0.00041232,7]
[309812217,1704161441197,-517.58500742,0.00041232,7]
[309812218,1704161441206,-506.26932897,0.00041232,7]
[309812219,1704161441215,-503.78413883,0.00041232,7]
[309812220,1704161441224,-500.0,0.00041232,7]
[309812221,1704161441234,-500.0,0.00041232,7]
[309812222,1704161441245,-485.42229838,0.00041232,7]
[309812223,1704161441255,-500.0,0.00041232,7]
[309812224,1704161441264,-524.87803194,0.00041232,7]
[309812225,1704161441273,-500.0,0.00041232,7]
[309812226,1704161441282,-500.0,0.00041232,7]
[309812227,1704161441291,-500.0,0.00041232,7]
[309812228,1704161441300,-314.64362143,0.00041232,7]
[309812229,1704161441309,-507.81855575,0.00041232,7]
[309812230,1704161441318,-500.0,0.00041232,7]
[309812231,1704161441328,-500.0,0.00041232,7]
[309812232,1704161441339,-500.0,0.00041232,7]
[309812233,1704161441349,-513.89783607,0.00041232,7]
[309812234,1704161441359,-731.17,0.00041232,7]
[309812235,1704161441368,-52383.1,0.00041232,3]
[309812236,1704161441379,-500.0,0.00041232,7]
[309812237,1704161441390,-516.74083372,0.00041232,7]
[309812238,1704161441401,-506.20514767,0.00041232,7]
[309812239,1704161441411,-500.0,0.00041232,7]
[309812240,1704161441420,-150.0,0.00041232,7]
[309812241,1704161441429,-500.0,0.00041232,7]
[309812242,1704161441439,-514.81985762,0.00041232,7]
[309812243,1704161441448,-500.0,0.00041232,7]
[309812244,1704161441456,-500.0,0.00041232,7]
[309812245,1704161441465,-500.0,0.00041232,7]
[309812246,1704161441474,-506.1378546,0.00041232,7]
[309812247,1704161441483,-157.5696183,0.00041232,7]
[309812248,1704161441492,-503.44530749,0.00041232,7]
[309812249,1704161441502,-502.74095523,0.00041232,7]
[309812250,1704161441511,-500.0,0.00041232,7]
[309812252,1704161441519,-506.8669146,0.00041232,7]
[309812253,1704161441528,-534.75957732,0.00041232,7]
[309812254,1704161441538,-703.47,0.00041232,7]
[309812255,1704161441547,-9947.87,0.00041232,7]
[309812256,1704161441556,-510.77519755,0.00041232,7]
[309812257,1704161441565,-4001.31,0.00041232,7]
[309812258,1704161441574,-501.27100757,0.00041232,7]
[309812259,1704161441585,-500.0,0.00041232,7]
[309812260,1704161441601,-4004.8,0.00041232,7]
[309812261,1704161441616,-500.0,0.00041232,7]
[309812262,1704161441630,-500.0,0.00041232,7]
[309812263,1704161441642,-533.80060478,0.00041232,7]
[309812264,1704161441655,-4731.56,0.00041232,7]
[309812265,1704161441669,-500.0,0.00041232,7]
[309812266,1704161441684,-504.74898501,0.00041232,7]
[309812267,1704161441698,-500.0,0.00041232,7]
[309812268,1704161441710,-501.09422227,0.00041232,7]
[309812269,1704161441722,-500.0,0.00041232,7]
[309812270,1704161441735,-500.0,0.00041232,7]
[309812271,1704161441748,-192.75462368,0.00041232,7]
[309812272,1704161441760,-500.97550861,0.00041232,7]
[309812273,1704161441774,-509.97864008,0.00041232,7]
[309812274,1704161441786,-500.0,0.00041232,7]
[309812275,1704161441797,-500.0,0.00041232,7]
[309812276,1704161441812,-500.0,0.00041232,7]
[309812277,1704161441825,-1028.73,0.00041232,7]
[309812278,1704161441839,-501.62755887,0.00041232,7]
[309812280,1704161441850,-500.0,0.00041232,7]
[309812282,1704161441864,-524.31118888,0.00041232,7]
[309812283,1704161441878,-500.0,0.00041232,7]
[309812284,1704161441891,-503.19158167,0.00041232,7]
[309812285,1704161441906,-715.54,0.00041232,7]
[309812286,1704161441920,-2475.03,0.00041232,7]
[309812287,1704161441933,-500.0,0.00041232,7]
[309812288,1704161441944,-500.0,0.00041232,7]
[309812289,1704161441955,-506.44369768,0.00041232,7]
[309812290,1704161441967,-282.82346354,0.00041232,7]
[309812291,1704161441981,-507.58897877,0.00041232,7]
[309812292,1704161441993,-727.24,0.00041232,7]
[309812293,1704161442006,-1262.83439,0.00041232,7]
[309812294,1704161442016,-1262.83439,0.00041232,7]
[309812295,1704161442027,-1262.83439,0.00041232,7]
[309812296,1704161442039,-1262.83439,0.00041232,7]
[309812297,1704161442051,-210.637501,0.00041232,7]
[309812298,1704161442062,-210.637501,0.00041232,7]
[309812299,1704161442073,-210.637501,0.00041232,7]
[309812300,1704161442084,-210.637501,0.00041232,7]
[309812301,1704161442096,-500.0,0.00041369,7]
[309812302,1704161442108,-500.0,0.00041369,7]
[309812303,1704161442119,-500.0,0.00041369,2]
[309812304,1704161442132,-2371.14,0.00041369,7]
[309812305,1704161442143,-506.98410647,0.00041369,7]
[309812306,1704161442154,-512.63736084,0.00041369,7]
[309812307,1704161442165,-500.0,0.00041369,7]
[309812308,1704161442177,-500.0,0.00041369,7]
[309812309,1704161442188,-389.10483506,0.00041369,7]
[309812310,1704161442200,-506.74725858,0.00041369,7]
[309812311,1704161442211,-500.0,0.00041369,7]
[309812312,1704161442222,-644.83754957,0.00041369,7]
[309812313,1704161442233,-502.62087093,0.00041369,7]
[309812314,1704161442245,-506.48763005,0.00041369,7]
[309812315,1704161442256,-500.0,0.00041369,7]
[309812316,1704161442267,-506.88422344,0.00041369,7]
[309812317,1704161442279,-2141.32,0.00041369,7]
[309812318,1704161442290,-511.57761272,0.00041369,7]
[309812319,1704161442302,-510.80040643,0.00041369,7]
[309812320,1704161442312,-500.0,0.00041369,7]
[309812321,1704161442322,-507.20901741,0.00041369,7]
[309812322,1704161442331,-1194.12,0.00041369,7]
[309812323,1704161442340,-502.38449293,0.00041369,7]
[309812324,1704161442349,-501.69840963,0.00041369,7]
[309812325,1704161442358,-503.7768482,0.00041369,7]
[309812326,1704161442453,-608.4050275,0.00041369,7]
[309812327,1704161442465,-500.0,0.00041369,7]
[309812328,1704161442475,-500.0,0.00041369,7]
[309812329,1704161442484,-504.74789277,0.00041369,7]
[309812330,1704161442494,-500.0,0.00041369,7]
[309812331,1704161442503,-503.78794816,0.00041369,7]
[309812332,1704161442512,-514.27312123,0.00041369,7]
[309812333,1704161442521,-503.42098085,0.00041369,7]
[309812334,1704161442530,-513.86714749,0.00041369,7]
[309812335,1704161442539,-574.58521206,0.00041369,7]
[309812336,1704161442548,-506.10059948,0.00041369,7]
[309812337,1704161442557,-435.02444488,0.00041369,7]
[309812338,1704161442566,-516.07351958,0.00041369,7]
[309812339,1704161442574,-502.8064103,0.00041369,7]
[309812340,1704161442583,-601.16,0.00041369,7]
[309812341,1704161442592,-425.57604119,0.00041369,7]
[309812342,1704161442601,-500.0,0.00041369,7]
[309812343,1704161442610,-167.58397682,0.00041369,7]
[309812344,1704161442619,-1063.06,0.00041369,7]
[309812345,1704161442630,-500.0,0.00041369,7]
[309812346,1704161442639,-202.56545927,0.00041369,7]
[309812347,1704161442649,-509.34844658,0.00041369,7]
[309812348,1704161442658,-506.81914496,0.00041369,7]
[309812349,1704161442668,-521.11554391,0.00041369,7]
[309812350,1704161442677,-3652.92,0.00041369,7]
[309812351,1704161442690,-929.38,0.00041369,7]
[309812352,1704161442699,-500.0,0.00041369,7]
[309812353,1704161442708,-690.43,0.00041369,7]
[309812354,1704161442718,-500.0,0.00041369,7]
[309812355,1704161442727,-502.91288221,0.00041369,7]
[309812356,1704161442737,-515.67864189,0.00041369,7]
[309812357,1704161442746,-131.27279015,0.00041369,7]